Cogmind - Beta 16 @@@ ROGUE MODE // 2025.11.27 @ 22:44:53 Player: opdo Result: Destroyed by G-50 Soldier with Heavy Laser Performance ------------- Evolutions (4) 2000 Regions Visited (5) 1000 Robots Destroyed (64) 320 Value Destroyed (1964) 1964 Prototype IDs (22) 440 Alien Tech Used (0) 0 Bonus (1019) 1019 TOTAL SCORE: 6743 Bonus ------- Follower Combat Kills 219 Registered with UFD 300 Met Optimus in HQ 500 Cogmind --------- Core Integrity 0/850 Matter 290/300 Energy 200/290 System Corruption 5% Temperature Cool (9) Movement Rolling (110) Ox2 Location -6/Factory Parts ------- > --- POWER (1) -------- Reinforced Deuterium Engine > --- PROPULSION (5) --- Flexi-carbon Leg Wheel Wheel > --- UTILITY (7) ------ Advanced Heat Sink Improved Cooling System Large Storage Unit 0b10 Decoder Chip [Looter] Advanced ECM Suite System Shield Dynamic Insulation System > --- WEAPON (2) ------- Companion Sword > --- INVENTORY (15) --- Light Nuclear Core Light Fission Core Light Antimatter Reactor Wheel High-capacity Storage Unit Medium Matter Pod (50) Structural Scanner Enhanced Optical Array Focal Shield System Shield Dynamic Insulation System Improved Light Cannon Improved Grenade Launcher Heavy Rocket Launcher Peak State ------------ > --- POWER ------------ Fission Core Light Fission Core Cold Fusion Reactor > --- PROPULSION ------- Carbon-fiber Leg Carbon-fiber Leg Flexi-carbon Leg Flexi-carbon Leg Flexi-carbon Leg > --- UTILITY ---------- High-capacity Storage Unit Advanced Sensor Array Improved Signal Interpreter 0b10 Decoder Chip [Looter] Microactuators Improved Reaction Control System Power Bank > --- WEAPON ----------- Companion Sword > --- INVENTORY -------- Improved Treads Medium Treads Wheel Wheel Advanced Heat Sink Large Storage Unit Structural Scanner Enhanced Optical Array Advanced ECM Suite Utility Shielding Focal Shield Improved Shield Generator System Shield System Shield Dynamic Insulation System Tractor Beam Improved Light Cannon Mini Grenade Launcher Improved Grenade Launcher [Rating: 80] Favorites ----------- Power Improved Ion Engine Engine Improved Ion Engine Power Core Fusion Compressor Reactor Cold Fusion Reactor Propulsion Armored Wheel Treads Light Treads Leg Flexi-carbon Leg Wheel Armored Wheel Flight Unit VTOL Module Utility High-capacity Storage Unit Device Improved Heat Sink Storage High-capacity Storage Unit Processor 0b10 Decoder Chip [Looter] Hackware System Shield Protection Medium Armor Plating Weapon Companion Sword Ballistic Gun Shotgun Ballistic Cannon Improved Light Cannon Launcher Grenade Launcher Special Weapon Mining Laser Impact Weapon Flail Slashing Weapon Companion Sword Build | -11 -10 -10 -9 -9 -6 ------- Run | Yrd Mat Sub Rec Scr Fac Slots Evolved 8 | . . . . . 8 Power . | . . . . . . Propulsion 3 | . . . . . 3 Utility 5 | . . . . . 5 Weapon . | . . . . . . Parts Attached 82 | 6 5 8 7 10 46 Power 12 | 1 1 1 1 2 6 Engine 6 | 1 . 1 1 1 2 Core 5 | . 1 . . 1 3 Reactor 1 | . . . . . 1 Propulsion 32 | 2 . 2 2 5 21 Treads 8 | 2 . . . 2 4 Leg 14 | . . 1 . 3 10 Wheel 9 | . . 1 2 . 6 Hover . | . . . . . . Flight 1 | . . . . . 1 Utility 24 | 1 2 . 3 2 16 Device 14 | . 1 . . 1 12 Storage 4 | 1 1 . 2 . . Processor 3 | . . . . 1 2 Hackware 1 | . . . . . 1 Protection 2 | . . . 1 . 1 Artifact . | . . . . . . Weapon 14 | 2 2 5 1 1 3 Energy Gun . | . . . . . . Energy Cannon . | . . . . . . Ballistic Gun 5 | 2 2 1 . . . Ballistic Cannon 2 | . . 2 . . . Launcher 4 | . . 1 . . 3 Special Weapon 1 | . . 1 . . . Impact Weapon 1 | . . . 1 . . Slashing Weapon 1 | . . . . 1 . Piercing Weapon . | . . . . . . Special Melee Weapon . | . . . . . . Unidentified Prototypes 2 | . . . . 1 1 Corrupted Parts 1 | . . . . . 1 System Corruption 3 | . . . . . 3 Parts Lost 35 | . . 2 2 . 31 Power 6 | . . 1 . . 5 Propulsion 21 | . . 1 1 . 19 Utility 8 | . . . 1 . 7 Weapon . | . . . . . . Highest Loss Streak 15 | . . 2 2 . 15 To Critical Strikes . | . . . . . . Average Backups 16 | 2 11 13 17 18 17 Power . | . 1 . 1 . . Propulsion 2 | 1 2 1 1 2 2 Utility 8 | . . 2 7 10 10 Weapon 5 | . 8 8 7 4 2 Tool/Special . | . . . . . . Unused Backups 42 | . . 4 3 15 20 Power 5 | . . 1 1 . 3 Propulsion 2 | . . 1 . . 1 Utility 23 | . . . 1 10 12 Weapon 12 | . . 2 1 5 4 Tool/Special . | . . . . . . Average Slot Usage (%) 87 | . 98 98 98 83 81 Engine 8 | . 14 2 14 9 5 Core 3 | . . 10 . 4 2 Treads 7 | . 28 20 . 3 6 Leg 10 | . . 3 7 11 13 Wheel 9 | . . 3 20 11 2 Device 7 | . 4 14 6 . 21 Storage 12 | . 23 14 14 14 5 Processor 7 | . . . . 10 10 Ballistic Gun 6 | . 28 17 14 2 . Ballistic Cannon 1 | . . 2 8 . . Special Weapon 1 | . . 7 . . . Impact Weapon 1 | . . . 5 2 . Slashing Weapon 6 | . . . . 11 5 Peak Build Rating 80 | 6 15 16 17 29 80 Average Rating 27 | 5 10 14 16 22 57 On Entrance 12 | . 6 15 16 15 22 Avg Prop Armor Cover (%) 13 | . . 8 7 14 17 Naked Turns . | . . . . . . Heaviest Build 81 | 10 34 33 59 54 81 Greatest Support 90 | 40 40 40 32 43 90 Greatest Overweight (x) 6 | . . 2 4 4 6 Average Overweight (x) 2 | . . . 2 3 2 Largest Inventory Capacity 20 | 8 15 15 20 20 20 Average Capacity 18 | 7 14 15 19 20 19 Most Carried 20 | 5 15 15 20 20 20 Average Carried 17 | 3 12 14 18 19 17 Final Capacity 20 | 8 15 15 20 20 15 Final Carried 20 | 5 15 14 20 20 14 Class Distribution -------------------- 84% | Mutant 11% | Assassin 4% | Scavenger-Mutant Dominant Class ---------------- Mutant | -10/Materials Mutant | -10/Subcaves Mutant | -9/Recycling Mutant | -9/Scraptown Assassin | -6/Factory Resources | -11 -10 -10 -9 -9 -6 ----------- Run | Yrd Mat Sub Rec Scr Fac Matter Collected 1772 | 280 107 340 232 50 763 Remotely . | . . . . . . Salvage Created 2508 | 59 236 214 433 . 1566 Parts 126 | 9 13 23 3 . 78 Haulers Intercepted 3 | . . . . . 3 Recyclers Shooed . | . . . . . . Parts Field Recycled . | . . . . . . Retrieved Matter . | . . . . . . Parts Self-Destructed 14 | . . 14 . . . Prevented . | . . . . . . Parts Restored . | . . . . . . Kills | -11 -10 -10 -9 -9 -6 ------- Run | Yrd Mat Sub Rec Scr Fac Combat Hostiles Destroyed 40 | . 8 9 2 . 21 Melee 13 | . . . . . 13 Guns 11 | . 8 2 1 . . AOE 15 | . . 7 . . 8 Classes Destroyed 14 | 2 2 2 2 . 6 Worker 11 | 1 . . . . 10 Builder 1 | . . . . . 1 Tunneler 2 | 2 . . . . . Hauler 3 | . . . . . 3 Recycler 6 | . . . 5 . 1 Turret 1 | . . 1 . . . Swarmer 7 | . 3 3 . . 1 Grunt 17 | . 5 . . . 12 Brawler 1 | . . . . . 1 Sentry 4 | . . . 2 . 2 Hunter 3 | . . . . . 3 Programmer 1 | . . . . . 1 Behemoth 1 | . . . . . 1 Subdweller 6 | . . 6 . . . Best Kill Streak 6 | 2 3 3 2 . 6 Combat Bots Only 4 | . 3 3 1 . 4 Max Kills in Single Turn 3 | 1 1 2 1 . 3 Gunslinging . | . . . . . . Exploded 2 | . . 2 . . 2 Melee 1 | . . . . . 1 Uniques/NPCs Destroyed . | . . . . . . Combat | -11 -10 -10 -9 -9 -6 -------- Run | Yrd Mat Sub Rec Scr Fac Hostile Shots Fired 357 | . 27 54 21 . 255 Missed 91 | . 8 24 4 . 55 Hits 266 | . 19 30 17 . 200 Projectile 266 | . 19 30 17 . 200 AOE 1 | . . . . . 1 Critical Strikes 11 | . 1 1 2 . 7 Damage Taken 4801 | . 216 342 266 . 3977 Core 1006 | . 15 78 46 . 867 Absorbed by Shields 81 | . . . . . 81 Redirected to Shielding 31 | . . . . . 31 Regen/Repaired (Parts) 465 | . . . . 465 . Core Remaining (%) 72 | 100 . . . 44 . Volleys Fired 91 | 10 15 44 10 . 12 Largest 2 | 2 2 2 2 . 1 Hottest 123 | 40 46 123 56 . 39 Shots Fired 149 | 20 30 67 20 . 12 Gun 90 | 20 30 30 10 . . Cannon 14 | . . 4 10 . . Launcher 21 | . . 9 . . 12 Special 24 | . . 24 . . . Kinetic 104 | 20 30 34 20 . . Thermal 24 | . . 24 . . . Explosive 21 | . . 9 . . 12 Electromagnetic . | . . . . . . Robot Hit Streak 22 | 6 9 22 9 . 7 Robot Miss Streak 3 | 2 2 3 2 . 1 Penetration Max . | . . . . . . Secondary Targets . | . . . . . . Shots Hit Robots 195 | 13 26 31 26 . 99 Core Hits 107 | 6 15 20 6 . 60 Critical Kills . | . . . . . . Critical Parts Destroyed 2 | . . . 2 . . Critical Strikes 10 | . . . 2 . 8 Smash 2 | . . . 2 . . Melee Attacks 141 | . . . 18 . 123 Impact 18 | . . . 18 . . Slashing 123 | . . . . . 123 Piercing . | . . . . . . Sneak Attacks 19 | . . . 5 . 14 Combat Hostiles . | . . . . . . Follow-up Attacks . | . . . . . . Damage Inflicted 7791 | 113 402 879 899 . 5498 Guns 998 | 113 397 328 160 . . Cannons 246 | . . 43 179 . 24 Explosions 1820 | . . 508 . . 1312 Melee 4664 | . . . 509 . 4155 Ramming 63 | . 5 . 51 . 7 Kinetic 1220 | 113 397 371 339 . . Thermal . | . . . . . . Explosive 1718 | . . 508 . . 1210 Electromagnetic 102 | . . . . . 102 Impact 533 | . . . 509 . 24 Slashing 4155 | . . . . . 4155 Piercing . | . . . . . . Highest Corruption 5 | . . . . . 5 Average Corruption 1 | . . . . . 1 Corruption Purged . | . . . . . . Corruption Blocked . | . . . . . . Effects 16 | . . . . . 16 Message Errors 4 | . . . . . 4 Matter Fused 6 | . . . . . 6 Energy Discharges 3 | . . . . . 3 Parts Rejected 1 | . . . . . 1 Data Loss (minor) 2 | . . . . . 2 Overload Shots . | . . . . . . Overflow Damage 756 | . . 8 208 . 540 Projectiles 8 | . . . 8 . . Explosions 25 | . . 8 . . 17 Melee 723 | . . . 200 . 523 Knockbacks 4 | . . 1 3 . . Impact 1 | . . . 1 . . Kinetic 3 | . . 1 2 . . Secondary . | . . . . . . Self-Inflicted Damage 134 | . . . 25 . 109 Shots 3 | . . . . . 3 Rammed 6 | . 2 . 3 . 1 Targets Rammed 6 | . 2 . 3 . 1 Kicked . | . . . . . . Crushed . | . . . . . . Highest Temperature 13 | . 8 . 13 . 6 Average Temperature 4 | . 3 . 4 . 6 Received Heat Transfer 1237 | . 111 126 99 . 901 Siege Activations . | . . . . . . Martial Activations . | . . . . . . Shielding Activations . | . . . . . . Robots Disrupted . | . . . . . . Combat Hostiles . | . . . . . . Robots Corrupted 2 | . . . 2 . . Combat Hostiles 1 | . . . 1 . . Parts Fried 3 | . . . 3 . . Impact Corruptions 8 | . . . 8 . . Robots Melted . | . . . . . . Combat Hostiles . | . . . . . . Parts Melted . | . . . . . . Heat Transferred . | . . . . . . Parts Sabotaged . | . . . . . . Parts Stolen . | . . . . . . Parts Stripped . | . . . . . . Power Chain Reactions . | . . . . . . Alert | -11 -10 -10 -9 -9 -6 ------- Run | Yrd Mat Sub Rec Scr Fac Maximum Alert Level 1 | . . . . . 1 Low Security (%) 81 | 100 100 . 100 . 65 Level 1 18 | . . . . . 34 Level 2 . | . . . . . . Level 3 . | . . . . . . Level 4 . | . . . . . . Level 5 . | . . . . . . High Security . | . . . . . . Max Security . | . . . . . . Peak Influence 395 | 10 140 . 80 . 395 Initial 16 | . . . 16 . . Average 86 | 1 47 . 15 . 141 Influence Increases 1746 | 15 190 140 220 . 1181 Destroy 0b10 Robot/C 860 | . 160 80 40 . 580 Destroy 0b10 Robot/NC 130 | 15 . . 25 . 90 Destroy Leader 176 | . 30 . . . 146 Allied During Kill 25 | . . . . . 25 Successful Hack 39 | . . . 30 . 9 Select Force Hacks 120 | . . . 120 . . Disable Machine 150 | . . . . . 150 Destroy Structure 81 | . . . 5 . 76 Lose Combat Pursuer 165 | . . 60 . . 105 Influence Decreases 1361 | 15 70 224 242 14 796 Entered New Map 92 | . . 58 20 14 . Time Decay 909 | 15 70 156 202 . 466 Lost Part 340 | . . 10 20 . 310 Lost Ally 20 | . . . . . 20 Squads Dispatched 8 | . . . . . 8 Investigation 1 | . . . . . 1 Extermination 2 | . . . . . 2 Reinforcement 5 | . . . . . 5 Assault . | . . . . . . Garrison . | . . . . . . Intercept . | . . . . . . Searches Triggered . | . . . . . . Construction Impeded 1 | . . . . . 1 Haulers Reinforced 2 | . . . . . 2 Active Scanning Responses . | . . . . . . Cargo Convoy Interrupts . | . . . . . . Stealth | -11 -10 -10 -9 -9 -6 --------- Run | Yrd Mat Sub Rec Scr Fac Distress Signals 3 | . 1 . . . 2 Communications Jammed . | . . . . . . Distress Signals . | . . . . . . Times Spotted 65 | . 12 11 2 . 40 Peak Tracking Total 6 | . 6 2 1 . 5 Tactical Retreats 5 | . . 2 . . 3 Traps | -11 -10 -10 -9 -9 -6 ------- Run | Yrd Mat Sub Rec Scr Fac Traps Triggered 5 | . . 1 . . 4 Indirectly 1 | . . . . . 1 Trap Hack Attempts . | . . . . . . Triggered . | . . . . . . Disarmed . | . . . . . . Reprogrammed . | . . . . . . Reused . | . . . . . . Traps Extracted . | . . . . . . Installed . | . . . . . . Triggered . | . . . . . . Machines | -11 -10 -10 -9 -9 -6 ---------- Run | Yrd Mat Sub Rec Scr Fac Machines Disabled 15 | . . 5 . . 10 Max in Single Turn 3 | . . 2 . . 3 Machines Repaired . | . . . . . . Machines Dismantled . | . . . . . . Machines Sabotaged . | . . . . . . Overloaded Fab Kills . | . . . . . . Hacking | -11 -10 -10 -9 -9 -6 --------- Run | Yrd Mat Sub Rec Scr Fac Machines Accessed 17 | . . 3 10 2 2 Terminals 7 | . . . 6 . 1 Fabricators . | . . . . . . Repair Stations . | . . . . . . Recycling Units 4 | . . . 4 . . Scanalyzers 1 | . . . . . 1 Garrison Access . | . . . . . . Total Hacks 45 | . . 3 32 3 7 Successful 32 | . . 3 22 3 4 Failed 13 | . . . 10 . 3 Catastrophic 1 | . . . 1 . . Database Lockouts . | . . . . . . Manual 30 | . . . 25 . 5 Terminals 26 | . . . 21 . 5 Fabricators . | . . . . . . Repair Stations . | . . . . . . Recycling Units 11 | . . . 11 . . Scanalyzers 2 | . . . . . 2 Garrison Access . | . . . . . . Terminal Hacks 9 | . . 3 3 3 . Record 2 | . . . . 2 . Part Schematic 1 | . . . 1 . . Robot Analysis 1 | . . . 1 . . Open Door 2 | . . 1 . 1 . Terminal Index 1 | . . . 1 . . Proto ID Catalog 1 | . . 1 . . . Release Object 1 | . . 1 . . . Fabricator Hacks . | . . . . . . Repair Station Hacks . | . . . . . . Recycling Unit Hacks 6 | . . . 6 . . Report Inventory 4 | . . . 4 . . Retrieve Components 2 | . . . 2 . . Scanalyzer 2 | . . . . . 2 Retrieve Study 2 | . . . . . 2 Garrison Access Hacks . | . . . . . . Unauthorized Hacks 14 | . . . 12 . 2 Terminals 10 | . . . 8 . 2 Track 1 | . . . 1 . . Botnet 3 | . . . 2 . 1 Skim 6 | . . . 5 . 1 Fabricators . | . . . . . . Repair Stations . | . . . . . . Recycling Units 4 | . . . 4 . . Tunnel 4 | . . . 4 . . Scanalyzers . | . . . . . . Garrison Access . | . . . . . . Data Cores Recovered . | . . . . . . Used . | . . . . . . Hacking Detections 7 | . . . 5 . 2 Full Trace Events . | . . . . . . Feedback Events . | . . . . . . Feedback Blocked . | . . . . . . Robot Schematics Acquired . | . . . . . . Robots Built . | . . . . . . Authchips . | . . . . . . Time . | . . . . . . Total Robot Build Rating . | . . . . . . Part Schematics Acquired 1 | . . . 1 . . Parts Built . | . . . . . . Authchips . | . . . . . . Time . | . . . . . . Total Part Build Rating . | . . . . . . Part Studies Acquired 2 | . . . . . 2 Parts Repaired . | . . . . . . Time . | . . . . . . Parts Recycled . | . . . . . . Recycled Matter . | . . . . . . Retrieved Matter . | . . . . . . Retrieved Components 6 | . . . 6 . . Parts Scanalyzed . | . . . . . . Part Schematics Acquired . | . . . . . . Parts Damaged . | . . . . . . Bothacking | -11 -10 -10 -9 -9 -6 ------------ Run | Yrd Mat Sub Rec Scr Fac Used RIF Installer . | . . . . . . Robots Hacked . | . . . . . . Non-combat . | . . . . . . Combat . | . . . . . . Robot Hacks Applied . | . . . . . . Relay Couplers Released . | . . . . . . Fabnet Peak Effective % . | . . . . . . Robots Rewired . | . . . . . . Allies Hacked . | . . . . . . Hacks Repelled . | . . . . . . Allies | -11 -10 -10 -9 -9 -6 -------- Run | Yrd Mat Sub Rec Scr Fac Total Allies 1 | . . . . 1 . Largest Group 1 | . . . . 1 1 Highest-Rated Group 60 | . . . . 60 60 Highest-Rated Ally 60 | . . . . 60 60 Total Orders . | . . . . . . Ally Attacks 38 | . . . . . 38 Total Damage 1319 | . . . . . 1319 Kills 11 | . . . . . 11 Allies Corrupted . | . . . . . . Allies Melted 1 | . . . . . 1 Intel | -11 -10 -10 -9 -9 -6 ------- Run | Yrd Mat Sub Rec Scr Fac Active Infowar (turns) 4683 | . . . . 3049 1634 Sensors 1237 | . . . . . 1237 Structural 884 | . . . . . 884 Traps 183 | . . . . 183 . Decoding 4500 | . . . . 2866 1634 Cloaking 561 | . . . . . 561 ECM 5 | . . . . . 5 Robot Analysis Total 1 | . . . 1 . . Derelict Logs Recovered 4 | . . 1 . 3 . Drone Launches . | . . . . . . Drone Recoveries . | . . . . . . Decoded 0b10 Intel 90 | . . . . . 90 Items 90 | . . . . . 90 Exploration | -11 -10 -10 -9 -9 -6 ------------- Run | Yrd Mat Sub Rec Scr Fac Turns Passed 7784 | 161 276 1058 897 3758 1634 Spaces Moved 4448 | 80 125 590 606 2315 732 Core 5 | 5 . . . . . Treads 665 | 75 125 394 . 30 41 Legs 920 | . . 1 . 538 381 Wheels 2858 | . . 195 606 1747 310 Hover . | . . . . . . Flight . | . . . . . . Fastest Speed 50 | 50 160 120 112 112 108 Average Speed 152 | 153 160 147 130 159 153 Slowest Speed 270 | 160 160 260 150 270 245 Overloaded Moves . | . . . . . . Propulsion Burnouts . | . . . . . . Robots Hopped . | . . . . . . Potential Cave-ins 2 | . . . 2 . . Cave-ins Triggered . | . . . . . . Exploration Rate (%) 45 | 4 25 38 96 89 20 Regions Visited 5 Branch Regions 3 Pre-discovered Areas 6 | . . . 5 1 . Known Exits Taken 1 | . . . 1 . . Unknown Exits Taken 4 | 1 1 1 . 1 . Scrap Searched 11 | . . 5 . 6 . Spaces Dug 19 | . . 2 6 . 11 Terrain Destroyed 112 | . . 36 6 . 70 Melee 17 | . . . 6 . 11 Projectile 2 | . . 2 . . . AOE 93 | . . 34 . . 59 Terrain Rammed . | . . . . . . Walls Destroyed . | . . . . . . Machines Disabled . | . . . . . . Actions | -11 -10 -10 -9 -9 -6 --------- Run | Yrd Mat Sub Rec Scr Fac Total 5072 | 100 168 660 665 2408 1071 Wait 136 | . 13 . 2 15 106 Move 4443 | 79 124 589 605 2314 732 Hop . | . . . . . . Pick Up 82 | 5 8 6 11 32 20 Fast Attach 37 | 6 1 . . 4 26 Attach 29 | . . 2 1 2 24 Detach 3 | . . . . . 3 Swap 44 | . 4 13 8 5 14 Drop 60 | . 1 6 7 36 10 Fire 91 | 10 15 44 10 . 12 Melee 141 | . . . 18 . 123 Ram 4 | . . . 3 . 1 Kick . | . . . . . . Crush 2 | . 2 . . . . Escape Stasis . | . . . . . . Rewire . | . . . . . . Trap . | . . . . . . Miscellaneous . | . . . . . . Route ------- -11/Scrapyard -10/Materials (discovered 3 exits: [*Mat] / [*Min] / *Sub) -10/Subcaves (discovered 2 exits: [*Mat] / *Rec) -9/Recycling (discovered 2 exits: [*Fac] / *Scr) -9/Scraptown (discovered 2 exits: *Fac x2) -6/Factory (discovered 1 exit: *Fac) History --------- Turn | Location | Event 9 | -11/Scrapyard | Discovered new exit (range 14) 162 | -11/Scrapyard | Entered Materials 232 | -10/Materials | Discovered new exit (range 12) 261 | -10/Materials | Discovered new exit (range 10) 316 | -10/Materials | Build established: Mutant 327 | -10/Materials | Discovered new exit (range 8) 438 | -10/Materials | Entered Subcaves 448 | -10/Subcaves | Learned 2 Materials zone layouts 561 | -10/Subcaves | A swath of the cavern ceiling suddenly collapsed 928 | -10/Subcaves | Disturbed a concealed Subdweller 1059 | -10/Subcaves | Shifting Twisted Machinery released Multitool 1082 | -10/Subcaves | Shifting Twisted Machinery released Sub. Power Source 1084 | -10/Subcaves | A swath of the cavern ceiling suddenly collapsed 1206 | -10/Subcaves | Discovered new exit (range 10) 1323 | -10/Subcaves | Visited 4L-MR0's lab 1336 | -10/Subcaves | Found Power Bank 1368 | -10/Subcaves | Discovered new exit (range 14) 1496 | -10/Subcaves | Entered Recycling 2055 | -9/Recycling | Discovered new exit (range 15) 2216 | -9/Recycling | Learned location of 1 exit from Storage 2249 | -9/Recycling | Identified exit to Scraptown 2272 | -9/Recycling | Learned 8 Materials zone layouts 2283 | -9/Recycling | Learned location of Mines (-9) 2284 | -9/Recycling | Learned 8 Materials zone layouts 2286 | -9/Recycling | Learned Storage stockpile data 2314 | -9/Recycling | Learned Materials stockpile data 2322 | -9/Recycling | Core integrity fell below 50% 2367 | -9/Recycling | Scanned before Scraplab entrance 2383 | -9/Recycling | Entered Scraplab 2393 | -9/Recycling | Entered Scraptown 2480 | -9/Scraptown | Heard Great Nut preacher, LISTEN AND RECITE! 2501 | -9/Scraptown | Visited UFD Registry 2501 | -9/Scraptown | Registered with UFD as "Shortcutter" 2566 | -9/Scraptown | Visited Supply Room 2610 | -9/Scraptown | Visited Research Penetration Think Tank 2630 | -9/Scraptown | Visited Botcube Research 2651 | -9/Scraptown | Visited Observation Area 2745 | -9/Scraptown | Visited Cave Peace 2787 | -9/Scraptown | Visited Assassins FH 2825 | -9/Scraptown | Scanned Subdweller tech in exchange for log data 2828 | -9/Scraptown | Learned Research garrison access intel 2829 | -9/Scraptown | Learned location of Warlord (-5) 2831 | -9/Scraptown | Learned 8 Research zone layouts 2847 | -9/Scraptown | Discovered new exit (range 11) 3038 | -9/Scraptown | Visited Sword Containment 3053 | -9/Scraptown | Found Prototype Slashing Weapon 3053 | -9/Scraptown | Identified Companion Sword 3087 | -9/Scraptown | Visited Junk Repository 3244 | -9/Scraptown | Visited Scrap Suit Storage 3255 | -9/Scraptown | Found Scrap Suit 3277 | -9/Scraptown | Visited Infowarlord's Domain 3400 | -9/Scraptown | Delivered Scrap Shield to a Scientist 3545 | -9/Scraptown | Visited Curators Association 3655 | -9/Scraptown | Visited Bundlers 3732 | -9/Scraptown | Visited Comm Corps 3794 | -9/Scraptown | Visited CR-KLE's Repair Center 4417 | -9/Scraptown | Found Botcube 4818 | -9/Scraptown | CR-KLE repaired 4 parts 5647 | -9/Scraptown | Botcube activated 5816 | -9/Scraptown | Visited Awakened 5953 | -9/Scraptown | Visited A0-MCA Data Center 5962 | -9/Scraptown | Given a C rating by A0-MCA 6046 | -9/Scraptown | Met Optimus 6046 | -9/Scraptown | Accepted into 0bPrime 6127 | -9/Scraptown | Discovered new exit (range 3) 6151 | -9/Scraptown | Entered Factory 6151 | -6/Factory | Accompanied by 1 ally 6151 | -6/Factory | Evolved 8 slots: Propulsion x3, Utility x5 6152 | -6/Factory | Attached Power Bank, gained temporary slots: Power x3 6445 | -6/Factory | Build established: Assassin 7183 | -6/Factory | Lost 3 parts (1p1n1u) 7226 | -6/Factory | Discovered new exit (range 10) 7259 | -6/Factory | Identified exit to Factory 7343 | -6/Factory | Build established: Mutant 7372 | -6/Factory | Spotted B-75 Beast 7422 | -6/Factory | Core integrity fell below 50% 7456 | -6/Factory | Destroyed B-75 Beast 7474 | -6/Factory | Lost 15 parts (2p9n4u) 7524 | -6/Factory | Core integrity fell below 20% 7751 | -6/Factory | Build established: Scavenger-Mutant 7785 | -6/Factory | Destroyed by G-50 Soldier with Heavy Laser Last Messages --------------- 07754_ Sneak attack on K-01 Serf. 07754_ K-01 Serf destroyed. 07758_ Acquired Wheel. 07760_ Acquired 27 matter. 07761_ Extracted 76 matter. 07762_ Acquired Med. Matter Pod. 07764_ System corrupted: Energy discharge (-107). 07765_ K-01 Serf cleans the Nuclear Reactor. 07766_ Sneak attack on K-01 Serf. 07766_ K-01 Serf destroyed. 07767_ R-10 Processor collects Sml. Matter Pod. 07769_ K-01 Serf collects debris. 07771_ Acquired Wheel. 07773_ Sneak attack on K-01 Serf. 07773_ Destroyed Wheel. 07773_ K-01 Serf destroyed. 07774_ Extracted 21 matter. 07778_ Utility Shielding destroyed. 07784_ Destroyed Lgt. Angular Momentum Engine. Map ----- +----------------------------------------------------+ | ????????? ########## """ """ ""? ??????? ##?? | | ????????? + ? ?????????? ##?? | | ??????????????????## ?? ??????????? ?????? | | ??????????????????## ? ????????????????? | | ??????????????????####+#+####?###????????????????? | | ?????????????????? ? ????????????????? | | ?????????????????????? ??????????????????????????? | | ??????????????????????"??????????????????????????? | | ?????????????????????????????????????????????????? | | ??????????????????? ?????????????????????????????? | | ??????????????????? ? ????????????????????????? | | ???????????????????? """"""??????????????????????? | | ????????=??????????? """"""" ????????????????????? | | ?????????????????????"""""""?????????????????????? | | ????!????????????????""""""??????????????????????? | | ?????????????????????? ??????????????????????? | | ?????????????????????? ? ??????????????????????? | | ??????????????????????#"##/#?????????????????????? | | ??????????????????######## #????????????????[????? | | ??????????????????# ]## #?????????????????????? | | ??????????????????# ## #?????????????????????? | | ??????????????????# """ ## #?????????????????????? | | ??????????????????# """*## #?????????????????????? | | ??????????????????# """ ## #?????????????????????? | | ????????????????#?# ##g##????????????????????? | | ????????????????# # """!#@ #######??????????????? | | ????????????????# # """%+* ????????? | | ????????????????# # """ # #######??????????????? | | ???????? ???????# # ## ##????????????????????? | | ??????? ??????# # ## #????????????????=????? | | ???!!?? ###### ######## #???????????#??*??????? | | ??!!!? #????#u#?????????##"""???????? | | ??!!!? #???## ####?????? " ????? | | ?????? ##### # #?????? " " ??? | | ????? # ## ## #?????? " " ? | | ????? ###%# ##???## " " "? | | ????" ## # #?### " " ? | | ???? ] % ### " ? | | ???? [ ## ### """""?? | | ???? # """ # ####"##?? | | ????" # #"# #?? | | ????? """ # # | | ????? % """"# " | | ?????? ###### %[ "" # % !#?? | | ????????????# F""##% % // #?? | | ????????????# """## /= + | | ????????????# ## ## %% % / # | | ????????????# % ####"""""########?? | | ?????????!??# ! ####?????????# | | ????????????# ##??????????? | +----------------------------------------------------+ Best States ------------- Heat Dissipation 83 Energy Generation 43 Energy Capacity 535 Matter Stores 300 Matter Capacity 300 Sight Range 16 Robot Scan Range 16 Terrain Scan Density 10 Cloak Strength 2 EM Shielding 2 Armor Coverage 225 Utility Shielding 33 Melee Speed Boost 20 Evasion (%) 65 Recoil Reduction 3 Defensive Hacking 10 Item Schematics ----------------- Lrg. Storage Unit | -9/Recycling | Hacked Robot Schematics ------------------ None Fabricated ------------ Nothing Repaired ---------- Nothing Studied --------- Lgt. Nuclear Core | -6/Factory | Hacked Flexi-carbon Leg | -6/Factory | Hacked Alien Tech Used ----------------- None Achievements -------------- None Challenges ------------ None Game ------ Seed WeaponsTachyonMount Manual? 0 Play Time 00:38:31 Cumulative 129.6 hours Start 2025.11.27 @ 22:05:05 End 2025.11.27 @ 22:44:53 Sessions 1 Manual Loads 0 Difficulty Rogue Special Mode None Game No. 330 Rogue 328 Adventurer 2 Explorer 0 Win Type - Total 1 Types 1/0/0/0/0/0/0/0/0/0 Lore% 80 Gallery% 62 Achievement% 41 Wizard Run 0 Options --------- Layout 2 ASCII 0 Keyboard 0 Movement Numpad Keybinds 0 Fullscreen 2 Font 24/Smallcaps Map View 50x44 Zoom Use 0% Tactical HUD 1 Map Filters NONE Filters NONE Steam 1 RUN: 675c4a64-4884-4989-b250-4daaeebf105b